bitfinex/quotes_SOLUSD_20250819
["timestamp","ask_amount","ask_price","bid_price","bid_amount"]
[1755576231128,3.9272415,178.29,178.26,0.0584375]
[1755576231332,0.14216157,178.31,178.26,0.0584375]
[1755576231333,16.14137414,178.27,178.26,0.0584375]
[1755576231624,3.9071483,178.27,178.26,0.0584375]
[1755576231961,16.28353571,178.27,178.26,0.0584375]
[1755576232144,20.19072964,178.27,178.26,0.0584375]
[1755576232337,28.20107472,178.27,178.26,0.0584375]
[1755576232542,28.19686875,178.27,178.26,0.0584375]
[1755576232737,28.19673237,178.27,178.26,0.0584375]
[1755576233052,28.0545708,178.27,178.26,0.0584375]
[1755576233345,3.90285158,178.27,178.26,0.0584375]
[1755576233554,28.0545708,178.27,178.26,0.7684375]
[1755576234055,41.96,178.34,178.26,42.7084375]
[1755576234357,24.15171922,178.27,178.26,42.7084375]
[1755576235138,24.15171922,178.27,178.26,41.9984375]
[1755576235343,24.15171922,178.29,178.26,42.7084375]
[1755576235658,0.14216157,178.33,178.26,41.9984375]
[1755576235841,24.15171922,178.3,178.26,41.9984375]
[1755576236150,24.15171922,178.29,178.27,0.71]
[1755576236319,26.0,178.32,178.28,0.71]
[1755576236520,26.0,178.32,178.26,41.9984375]
[1755576236733,24.15171922,178.31,178.28,0.71]
[1755576237146,24.15171922,178.3,178.28,0.71]
[1755576237353,26.0,178.33,178.28,0.71]
[1755576237660,24.15171922,178.3,178.28,0.71]
[1755576237828,24.15171922,178.31,178.26,41.9984375]
[1755576238031,24.15171922,178.31,178.27,0.71]
[1755576238227,26.0,178.34,178.28,0.71]
[1755576238228,24.15171922,178.3,178.28,0.71]
[1755576238528,24.15171922,178.29,178.26,42.7084375]
[1755576238723,26.0,178.34,178.27,0.71]
[1755576238724,24.15171922,178.31,178.27,0.71]
[1755576239145,24.15171922,178.31,178.28,0.71]
[1755576239357,24.15171922,178.32,178.29,0.71]
[1755576239566,24.15171922,178.31,178.29,0.71]
[1755576239740,26.0,178.34,178.3,42.63]
[1755576239741,24.15171922,178.34,178.3,42.63]
[1755576240048,24.15171922,178.34,178.31,0.71]
[1755576240235,24.15171922,178.32,178.3,41.92]
[1755576240548,4.58377599,178.37,178.31,0.71]
[1755576240549,16.867673,178.37,178.31,0.71]
[1755576241060,9.9360033,178.42,178.36,24.15171922]
[1755576241244,24.15171922,178.4,178.37,42.79]
[1755576241548,9.9360033,178.42,178.38,47.66600404]
[1755576241853,9.9360033,178.42,178.38,42.06]
[1755576242034,24.15171922,178.4,178.38,42.77]
[1755576242231,24.18171922,178.41,178.38,42.77]
[1755576242430,0.03,178.41,178.39,0.71]
[1755576242638,0.03,178.41,178.4,0.71]
[1755576242955,0.03,178.41,178.4,24.86171922]
[1755576243536,0.03,178.41,178.4,0.71]
[1755576243730,0.03,178.41,178.4,30.46710038]
[1755576246364,0.03,178.45,178.42,24.15171922]
[1755576246547,0.03,178.45,178.42,66.23171922]
[1755576246865,42.06,178.59,178.42,66.23171922]
[1755576246866,24.15171922,178.54,178.44,24.15171922]
[1755576247071,17.54259321,178.58,178.47,24.15171922]
[1755576247072,28.05932461,178.53,178.47,24.15171922]
[1755576247351,28.06108154,178.52,178.48,42.75]
[1755576247526,24.15171922,178.51,178.48,42.75]
[1755576247727,14.6531947,178.58,178.5,24.15171922]
[1755576247728,10.07355386,178.58,178.5,24.15171922]
[1755576247927,10.07355386,178.58,178.51,42.74]
[1755576247928,3.91125109,178.57,178.51,42.74]
[1755576248145,3.91125109,178.57,178.52,0.7]
[1755576248352,3.91125109,178.56,178.53,0.7]
[1755576248539,24.15171922,178.55,178.54,42.12]
[1755576248863,28.06734251,178.55,178.54,42.12]
[1755576249161,28.06734251,178.55,178.54,42.1]
[1755576249359,24.15171922,178.56,178.54,42.1]
[1755576249531,3.91915125,178.55,178.54,42.1]
[1755576249866,3.91915125,178.57,178.54,42.8]
[1755576250173,24.15171922,178.62,178.55,24.85171922]
[1755576250471,3.92291668,178.61,178.59,24.15171922]
[1755576250638,3.92291668,178.61,178.56,0.7]
[1755576250639,24.15171922,178.61,178.6,42.1]
[1755576251035,3.92340497,178.61,178.6,42.1]
[1755576251232,28.07512419,178.61,178.6,42.1]
[1755576251540,28.07512419,178.61,178.59,42.1]
[1755576251739,3.92340497,178.6,178.59,42.1]
[1755576251969,24.15171922,178.62,178.59,47.69941766]
[1755576252266,3.92689695,178.61,178.59,48.39941766]
[1755576252433,3.92689695,178.6,178.59,42.8]
[1755576252767,28.07861617,178.6,178.59,42.1]
[1755576253657,28.77861617,178.6,178.59,42.1]
[1755576253834,28.07861617,178.6,178.59,42.1]
[1755576254540,20.08112454,178.6,178.59,42.1]
[1755576254936,22.31655927,178.6,178.53,0.7]
[1755576255258,26.0,178.57,178.56,42.08]
[1755576255460,32.16233168,178.57,178.52,42.06]
[1755576255632,3.92689695,178.56,178.52,42.06]
[1755576255839,3.92689695,178.55,178.52,42.76]
[1755576256063,3.92689695,178.54,178.52,42.76]
[1755576256361,3.92689695,178.53,178.52,42.76]
[1755576256680,3.92689695,178.53,178.52,42.06]
[1755576256831,3.92689695,178.53,178.52,63.81584085]
[1755576257036,0.7,178.63,178.52,64.51584085]
[1755576257243,16.15422759,178.62,178.56,16.15422759]
[1755576257443,17.69428052,178.61,178.57,42.04]
[1755576257765,0.7,178.61,178.57,42.04]
[1755576258067,16.15422759,178.6,178.57,42.04]
[1755576258233,16.15422759,178.59,178.57,42.04]
[1755576258434,24.761075,178.6,178.57,42.04]
[1755576258755,24.061075,178.58,178.57,42.04]
[1755576258958,26.30199028,178.58,178.57,42.04]
[1755576259677,26.30199028,178.58,178.54,43.0]
[1755576259966,24.061075,178.55,178.54,43.0]
[1755576260129,25.60199028,178.55,178.54,43.0]
[1755576260972,25.60157395,178.55,178.54,43.0]
[1755576261660,26.30157395,178.55,178.54,43.0]
[1755576262285,25.60157395,178.55,178.54,43.0]
[1755576262854,24.061075,178.57,178.54,48.60098577]
[1755576263162,24.061075,178.58,178.54,48.60098577]
[1755576263486,1.5408704,178.57,178.54,48.60098577]
[1755576263774,1.5408704,178.56,178.54,43.0]
[1755576263950,0.73,178.6,178.54,43.0]
[1755576263951,24.061075,178.57,178.54,43.0]
[1755576264156,24.061075,178.57,178.54,48.60096017]
[1755576264359,24.061075,178.55,178.54,43.0]
[1755576264859,24.061075,178.59,178.54,49.30094482]
[1755576265091,0.03,178.6,178.54,72.66201982]
[1755576265092,24.091075,178.6,178.54,72.66201982]
[1755576265264,1.54069353,178.59,178.55,0.7]
[1755576266180,1.54069353,178.59,178.56,5.60035842]
[1755576266374,24.061075,178.59,178.57,41.92]
[1755576266776,0.03,178.6,178.57,41.92]
[1755576267092,1.56996751,178.6,178.57,41.92]
[1755576267270,0.03,178.6,178.57,41.92]
[1755576267468,24.091075,178.6,178.57,41.92]
[1755576267989,0.03,178.6,178.57,42.62]
[1755576268197,0.03,178.6,178.58,5.59973121]
[1755576268400,0.03,178.6,178.57,48.21997663]
[1755576268700,0.03,178.6,178.57,47.51997663]
[1755576268882,0.03,178.6,178.57,48.21997663]
[1755576269606,24.061075,178.59,178.54,1.7]
[1755576269785,24.061075,178.58,178.55,41.86]
[1755576270460,0.03,178.6,178.55,47.46061306]
[1755576270660,24.061075,178.58,178.55,47.46061306]
[1755576271495,24.061075,178.58,178.55,41.86]
[1755576271800,24.061075,178.56,178.55,41.8]
[1755576272136,24.761075,178.56,178.55,41.8]
[1755576272508,24.761075,178.56,178.54,1.0]
[1755576272711,24.761075,178.55,178.54,1.0]
[1755576273341,0.14216157,178.58,178.54,1.0]
[1755576273516,24.061075,178.55,178.54,1.0]
[1755576274598,0.7,178.57,178.54,1.0]
[1755576274808,24.061075,178.55,178.54,1.0]
[1755576275326,24.761075,178.55,178.54,1.0]
[1755576275901,50.761075,178.55,178.54,1.0]
[1755576276329,50.90323657,178.55,178.54,1.0]
[1755576277837,26.0,178.55,178.54,1.0]
[1755576278133,50.061075,178.55,178.54,1.0]
[1755576278544,24.061075,178.55,178.54,1.0]
[1755576279147,0.68,178.57,178.54,1.0]
[1755576279315,24.061075,178.56,178.54,1.0]
[1755576279633,0.71,178.6,178.54,43.42]
[1755576279846,24.061075,178.57,178.54,42.72]
[1755576280047,24.20323657,178.55,178.54,1.0]
[1755576280221,28.16417851,178.55,178.54,1.0]
[1755576280536,48.49931409,178.55,178.54,1.0]
[1755576281504,48.35715252,178.55,178.54,1.0]
[1755576281705,47.67715252,178.55,178.54,1.0]
[1755576281923,48.35715252,178.55,178.54,1.0]
[1755576282321,47.67715252,178.55,178.54,1.0]
[1755576283713,5.50759307,178.55,178.54,1.0]
[1755576284120,16.16955945,178.55,178.54,1.0]
[1755576284517,19.76494747,178.55,178.54,1.0]
[1755576284728,16.16955945,178.55,178.54,1.0]
[1755576285843,19.76504266,178.55,178.54,1.0]
[1755576286038,16.16955945,178.55,178.54,1.0]
[1755576286651,16.84955945,178.55,178.54,1.0]
[1755576286831,20.44504266,178.55,178.54,1.0]
[1755576287021,16.84955945,178.55,178.54,1.0]
[1755576287228,20.44504266,178.55,178.54,1.0]
[1755576287626,19.76504266,178.55,178.54,1.0]
[1755576288368,20.44504266,178.55,178.54,1.0]
[1755576288841,19.76504266,178.55,178.54,1.0]
[1755576289158,20.58720423,178.55,178.54,1.0]
[1755576289338,46.58720423,178.55,178.54,1.0]
[1755576289666,26.14216157,178.54,178.51,0.06]
[1755576289853,16.16955945,178.52,178.51,0.06]
[1755576290035,19.76504266,178.52,178.51,0.06]
[1755576290235,20.44504266,178.52,178.51,0.06]
[1755576290934,20.58720423,178.52,178.51,0.06]
[1755576296055,25.99059052,178.52,178.51,0.06]
[1755576298637,8.9988695,178.52,178.51,0.06]
[1755576298836,20.17015152,178.52,178.51,0.06]
[1755576299048,22.25285389,178.52,178.51,0.06]
[1755576299263,20.85015152,178.52,178.51,0.06]
[1755576299940,16.16955945,178.52,178.51,0.06]
[1755576300364,0.03,178.57,178.51,0.76]
[1755576300548,16.16955945,178.56,178.51,0.76]
[1755576300957,16.16955945,178.53,178.51,0.76]
[1755576301161,16.16955945,178.52,178.51,0.06]
[1755576301381,42.84955945,178.52,178.51,0.06]
[1755576301556,42.16955945,178.52,178.51,0.06]
[1755576302373,46.99135165,178.52,178.51,0.06]
[1755576302645,22.39420051,178.52,178.51,0.06]
[1755576302842,16.99172102,178.52,178.51,0.06]
[1755576303067,22.39423838,178.52,178.51,0.06]
[1755576303270,20.16926145,178.52,178.51,0.06]
[1755576303583,16.16955945,178.52,178.51,0.06]
[1755576303946,16.16955945,178.54,178.51,0.76]
[1755576304150,0.03,178.57,178.51,0.76]
[1755576304341,16.16955945,178.52,178.51,0.76]
[1755576304555,16.16955945,178.53,178.51,0.76]
[1755576304746,16.16955945,178.53,178.52,0.7]
[1755576304965,26.0,178.56,178.52,0.7]
[1755576305266,16.16955945,178.53,178.52,0.7]
[1755576305464,16.16955945,178.53,178.51,0.06]
[1755576305673,16.16955945,178.52,178.51,0.06]
[1755576306049,0.68,178.55,178.51,0.06]
[1755576306258,16.16955945,178.52,178.51,0.06]
[1755576307049,26.0,178.56,178.51,0.76]
[1755576307248,16.16955945,178.54,178.52,0.7]
[1755576307652,16.16955945,178.53,178.51,0.06]
[1755576307857,16.16955945,178.52,178.51,0.06]
[1755576308050,16.16955945,178.53,178.51,0.74]
[1755576308757,0.03,178.52,178.51,0.74]
[1755576308952,16.19955945,178.52,178.51,0.06]
[1755576309374,0.03,178.52,178.51,0.74]
[1755576311160,0.03,178.52,178.51,16.44443214]
[1755576311890,0.03,178.57,178.51,71.80924979]
[1755576312187,0.03,178.57,178.52,0.68]
[1755576312573,0.03,178.57,178.53,19.60454825]
[1755576312878,0.03,178.58,178.56,16.1464207]
[1755576313082,0.03,178.58,178.54,0.68]
[1755576313083,0.03,178.61,178.57,41.38]
[1755576313280,0.03,178.61,178.59,16.1464207]
[1755576313680,0.03,178.61,178.59,0.68]
[1755576314468,0.03,178.61,178.57,5.6000448]
[1755576314668,0.03,178.61,178.58,42.06]
[1755576314870,16.1764207,178.61,178.58,41.38]
[1755576315494,16.1764207,178.61,178.56,47.66028912]
[1755576315495,16.1764207,178.6,178.56,47.66028912]
[1755576315878,16.1464207,178.59,178.56,42.06]
[1755576316074,16.1764207,178.6,178.56,42.06]
[1755576316286,16.1764207,178.6,178.56,47.66034003]
[1755576316480,0.03,178.6,178.58,5.59973121]
[1755576316680,0.03,178.6,178.59,0.68]
[1755576316882,0.03,178.6,178.59,16.8264207]
[1755576317404,0.03,178.6,178.59,0.68]
[1755576317905,16.1764207,178.6,178.56,42.06]
[1755576318086,16.1464207,178.59,178.56,41.38]
[1755576318295,16.1464207,178.58,178.56,41.38]
[1755576318518,16.1464207,178.57,178.54,0.68]
[1755576318711,16.1464207,178.57,178.55,41.38]
[1755576319008,16.1464207,178.56,178.55,41.38]
[1755576319209,16.8664207,178.56,178.55,41.38]
[1755576319378,16.8664207,178.56,178.51,5.66185384]
[1755576319579,16.1464207,178.56,178.52,0.68]
[1755576320376,16.1464207,178.55,178.51,0.06]
[1755576320609,16.1464207,178.54,178.51,0.06]
[1755576320979,0.72,178.55,178.51,0.06]
[1755576320980,16.1464207,178.53,178.51,0.06]
[1755576321304,16.1464207,178.54,178.51,0.06]
[1755576321501,16.1464207,178.53,178.51,0.06]
[1755576322309,16.8664207,178.52,178.51,0.06]
[1755576322513,21.0166459,178.52,178.51,0.06]
[1755576323012,20.87448433,178.52,178.51,0.06]
[1755576323988,24.62526604,178.52,178.51,0.06]
[1755576324284,16.8664207,178.52,178.51,0.06]
[1755576324503,22.42088788,178.52,178.51,0.06]
[1755576324816,26.02898819,178.52,178.51,0.06]
[1755576325023,24.48396459,178.52,178.51,0.06]
[1755576325305,8.33754389,178.52,178.51,0.06]
[1755576325607,24.48396459,178.52,178.51,0.06]
[1755576326309,24.62612616,178.52,178.51,0.06]
[1755576327114,3.60810031,178.52,178.51,0.06]
[1755576327314,16.1464207,178.52,178.51,0.06]
[1755576327914,20.87534423,178.52,178.51,0.06]
[1755576328890,20.15534423,178.52,178.51,0.06]
[1755576329100,26.14216157,178.56,178.51,0.06]
[1755576329318,16.1464207,178.55,178.52,0.68]
[1755576329493,16.1464207,178.57,178.52,0.68]
[1755576329815,0.03,178.6,178.52,0.68]
[1755576329816,16.1464207,178.58,178.52,0.68]
[1755576330013,16.1464207,178.55,178.53,0.68]
[1755576330213,16.1464207,178.54,178.51,0.74]
[1755576330396,16.1464207,178.53,178.51,0.06]
[1755576330716,16.1464207,178.55,178.51,5.66192706]
[1755576330911,26.0,178.57,178.52,0.68]
[1755576331124,16.1464207,178.56,178.52,0.68]
[1755576331412,0.72,178.59,178.52,0.68]
[1755576331596,16.1464207,178.55,178.52,0.68]
[1755576331918,26.72,178.59,178.52,0.68]
[1755576332208,16.1464207,178.55,178.52,0.68]
[1755576332713,16.1464207,178.56,178.52,0.68]
[1755576332914,16.1464207,178.54,178.51,0.06]
[1755576333611,16.1464207,178.54,178.51,0.74]
[1755576335391,16.1464207,178.54,178.51,0.06]
[1755576335723,16.1464207,178.52,178.51,0.06]
[1755576335901,42.1464207,178.54,178.51,0.06]
[1755576336091,132.7,178.57,178.51,0.06]
[1755576336092,132.7,178.57,178.51,6.34185326]
[1755576336294,0.14216157,178.59,178.52,16.8264207]
[1755576336295,16.1464207,178.59,178.52,16.8264207]
[1755576336491,16.1464207,178.57,178.52,0.68]
[1755576336816,16.1464207,178.55,178.51,5.66185326]
[1755576336992,16.8664207,178.55,178.51,0.06]
[1755576337722,16.1464207,178.52,178.51,0.06]
[1755576337896,26.0,178.57,178.51,0.06]
[1755576338226,16.1464207,178.53,178.51,0.06]
[1755576339007,16.1464207,178.52,178.51,0.06]
[1755576339407,0.7,178.52,178.51,0.06]
[1755576339607,16.1464207,178.52,178.51,0.06]
[1755576340398,16.8464207,178.52,178.51,0.06]
[1755576340905,16.3464207,178.52,178.51,0.06]
[1755576342031,15.6464207,178.52,178.51,0.06]
[1755576342328,0.7,178.54,178.51,0.06]
[1755576342524,0.7,178.54,178.52,0.67]
[1755576342525,26.0,178.54,178.52,0.67]
[1755576342730,26.0,178.54,178.51,0.73]
[1755576342929,26.0,178.54,178.51,0.06]
[1755576343227,132.7,178.57,178.52,6.27154621]
[1755576343397,158.7,178.57,178.52,5.60154621]
[1755576343597,157.7,178.57,178.53,0.67]
[1755576343797,131.7,178.57,178.54,0.67]
[1755576344618,131.7,178.57,178.52,5.60154621]
[1755576344619,10.79626429,178.56,178.52,5.60154621]
[1755576344824,10.09626429,178.53,178.51,0.06]
[1755576345020,10.09626429,178.52,178.51,0.06]
[1755576345922,10.09626429,178.54,178.51,0.06]
[1755576346398,26.0,178.56,178.51,0.73]
[1755576346399,16.16128093,178.55,178.51,0.73]
[1755576347313,16.16128093,178.55,178.51,6.33175192]
[1755576347524,42.16128093,178.56,178.52,0.67]
[1755576348510,16.16128093,178.57,178.53,0.67]
[1755576348708,26.0,178.56,178.53,0.67]
[1755576349421,0.7,178.58,178.54,5.60098577]
[1755576349609,16.16128093,178.55,178.53,41.22]
[1755576349827,16.16128093,178.55,178.51,46.88170772]
[1755576349828,16.16128093,178.54,178.51,46.88170772]
[1755576350332,16.16128093,178.54,178.51,41.28]
[1755576350917,0.7,178.55,178.51,41.28]
[1755576351117,16.16128093,178.54,178.51,41.28]
[1755576351339,0.7,178.55,178.51,41.28]
[1755576351340,16.16128093,178.53,178.51,41.28]
[1755576351642,16.86128093,178.52,178.51,0.06]
[1755576352664,26.7,178.52,178.51,0.06]
[1755576352810,42.16128093,178.52,178.51,0.06]
[1755576353309,42.86128093,178.52,178.51,0.06]
[1755576353509,50.49687701,178.52,178.51,0.06]
[1755576353738,50.63903858,178.52,178.51,0.06]
[1755576353914,67.14797266,178.52,178.51,0.06]
[1755576355344,65.74525415,178.52,178.51,0.06]
[1755576356137,61.72635586,178.52,178.51,0.06]
[1755576356452,67.14632594,178.52,178.51,0.06]
[1755576356957,67.14564044,178.52,178.51,0.06]
[1755576359251,67.14564049,178.52,178.51,0.06]
[1755576359961,131.64,178.5,178.49,0.06]
[1755576360129,147.80128093,178.5,178.49,0.06]
[1755576360329,155.43377429,178.5,178.49,0.06]
[1755576360549,147.80128093,178.5,178.49,0.06]
[1755576360755,151.81936246,178.5,178.49,0.06]
[1755576361136,147.80128093,178.5,178.49,0.06]
[1755576361352,151.81920262,178.5,178.49,0.06]
[1755576362438,155.44024789,178.5,178.49,0.06]
[1755576363265,181.44024789,178.5,178.49,0.06]
[1755576364252,135.26104527,178.5,178.49,0.73]
[1755576364435,131.64,178.5,178.49,0.73]
[1755576364631,131.64,178.55,178.49,0.73]
[1755576364867,16.16128093,178.53,178.49,0.73]
[1755576365161,29.62447854,178.53,178.49,0.73]
[1755576365360,42.16128093,178.53,178.49,0.73]
[1755576365538,26.0,178.53,178.49,0.73]
[1755576365738,147.80128093,178.55,178.49,0.73]
[1755576365956,7.65721378,178.54,178.49,0.73]
[1755576366145,19.7883938,178.54,178.49,0.73]
[1755576366332,13.7287576,178.54,178.49,6.33225006]
[1755576366533,10.10164473,178.51,178.49,0.06]
[1755576366766,14.13608527,178.5,178.49,0.06]
[1755576367741,4.03444054,178.5,178.49,0.73]
[1755576367956,10.10164473,178.51,178.49,0.73]
[1755576368449,26.0,178.52,178.49,0.73]
[1755576368650,36.10164473,178.52,178.49,0.73]
[1755576368962,10.10164473,178.51,178.49,0.73]
[1755576371355,26.0,178.52,178.49,0.06]
[1755576371356,10.10164473,178.5,178.49,0.06]
[1755576372062,10.10164473,178.51,178.49,0.06]
[1755576372269,36.10164473,178.52,178.49,0.73]
[1755576372473,4.03683479,178.51,178.49,0.73]
[1755576372641,4.03683479,178.51,178.5,0.67]
[1755576372851,36.10164473,178.54,178.5,0.67]
[1755576373055,36.10164473,178.54,178.49,5.66239315]
[1755576373056,19.17421387,178.53,178.51,0.67]
[1755576373254,13.73471469,178.53,178.51,0.67]
[1755576373457,4.03699767,178.52,178.51,0.67]
[1755576373671,40.1386424,178.52,178.49,0.06]
[1755576373851,14.1386424,178.51,178.49,0.06]
[1755576374058,10.10164473,178.51,178.49,0.06]
[1755576374746,0.03,178.52,178.5,0.67]
[1755576374954,4.06591068,178.52,178.49,0.06]
[1755576375151,4.06591068,178.52,178.49,0.73]
[1755576375559,4.06591068,178.52,178.5,0.67]
[1755576375770,0.03,178.52,178.49,0.06]
[1755576375976,14.1685979,178.52,178.49,0.06]
[1755576376270,10.79164473,178.52,178.49,0.06]
[1755576377054,4.03694332,178.51,178.49,0.06]
[1755576377269,10.79164473,178.52,178.49,0.06]
[1755576377577,4.03740306,178.51,178.49,0.06]
[1755576377966,0.03,178.52,178.5,0.67]
[1755576378153,4.06787397,178.52,178.5,0.67]
[1755576378761,4.06787397,178.52,178.49,0.06]
[1755576378963,14.1695187,178.52,178.49,0.06]
[1755576379256,10.13164473,178.52,178.49,0.73]
[1755576379571,36.13164473,178.52,178.49,0.73]
[1755576380175,10.10164473,178.5,178.49,0.06]
[1755576380366,15.54170989,178.5,178.49,0.06]
[1755576380571,16.20170989,178.5,178.49,0.06]
[1755576380758,151.47506459,178.5,178.49,0.06]
[1755576382283,147.43768903,178.5,178.49,0.06]
[1755576382479,151.47450839,178.5,178.49,0.06]
[1755576383081,151.61612611,178.5,178.49,0.06]
[1755576383668,166.72234168,178.5,178.49,0.06]
[1755576384289,156.62069695,178.5,178.49,0.06]
[1755576384482,166.72234168,178.5,178.49,0.06]
[1755576384684,151.47396454,178.5,178.49,0.06]
[1755576385497,151.47393047,178.5,178.49,0.06]
[1755576385869,150.81393047,178.5,178.49,0.06]
[1755576386202,151.47393047,178.5,178.49,0.06]
[1755576387193,150.81393047,178.5,178.49,0.06]
[1755576388396,140.71228574,178.5,178.49,0.06]
[1755576388689,149.41105477,178.5,178.49,0.06]
[1755576389685,151.47378674,178.5,178.49,0.06]
[1755576390080,151.61594831,178.5,178.49,0.06]
[1755576391303,151.61615134,178.5,178.49,0.06]
[1755576391595,151.61710411,178.5,178.49,0.06]
[1755576392877,26.0,178.48,178.47,0.06]
[1755576393074,19.31710411,178.48,178.47,0.06]
[1755576393281,19.97710411,178.48,178.47,0.06]
[1755576394061,19.17494254,178.48,178.47,0.06]
[1755576394271,15.54158784,178.48,178.47,0.06]
[1755576394483,5.43994311,178.48,178.47,0.06]
[1755576394691,15.54158784,178.48,178.47,0.06]
[1755576394887,17.77200754,178.48,178.47,0.73]
[1755576395090,17.77200754,178.48,178.47,0.06]
[1755576395263,45.17484216,178.48,178.47,0.06]
[1755576395470,19.17484216,178.48,178.47,0.06]
[1755576395768,45.83484216,178.48,178.47,0.06]
[1755576395970,19.17484216,178.48,178.47,0.06]
[1755576396195,9.07319743,178.48,178.47,0.73]
[1755576396420,3.6333547,178.51,178.47,0.73]
[1755576396577,5.44350719,178.5,178.48,0.67]
[1755576396781,16.20520322,178.49,178.47,0.06]
[1755576396973,151.87867676,178.48,178.47,0.06]
[1755576397172,19.83867676,178.48,178.47,0.06]
[1755576397384,45.17867676,178.48,178.47,0.06]
[1755576397788,9.07703203,178.48,178.47,0.06]
[1755576398000,15.54532206,178.48,178.47,0.06]
[1755576398206,19.17867676,178.48,178.47,0.06]
[1755576398587,19.17867676,178.48,178.47,0.73]
[1755576398894,9.07703203,178.48,178.47,0.06]
[1755576399093,19.17867676,178.48,178.47,0.06]
[1755576399298,15.54532206,178.48,178.47,0.06]
[1755576399690,19.17860937,178.48,178.47,0.06]
[1755576400326,14.14069849,178.48,178.47,0.06]
[1755576400624,46.00908292,178.48,178.47,0.06]
[1755576400792,20.00908292,178.48,178.47,0.06]
[1755576400995,20.00930293,178.48,178.47,0.06]
[1755576401514,19.17714136,178.48,178.47,0.06]
[1755576401686,19.86714136,178.48,178.47,0.06]
[1755576402520,45.86714136,178.48,178.47,0.06]
[1755576402692,45.17714136,178.48,178.47,0.06]
[1755576402899,19.86714136,178.48,178.47,0.06]
[1755576403309,20.00930293,178.48,178.47,0.06]
[1755576403693,46.00930293,178.48,178.47,0.06]
[1755576403899,20.00930293,178.48,178.47,0.06]
[1755576404196,20.00930293,178.48,178.45,0.06]
[1755576404197,40.71838716,178.48,178.45,0.06]
[1755576404396,10.10164473,178.46,178.45,0.06]
[1755576404596,9.07549663,178.46,178.45,0.06]
[1755576404800,5.44214193,178.46,178.45,0.73]
[1755576405017,5.44215932,178.46,178.45,0.73]
[1755576405398,15.54380405,178.46,178.45,0.73]
[1755576405704,15.54380405,178.46,178.45,6.33381059]
[1755576405705,4.03905376,178.46,178.45,6.33381059]
[1755576405895,3.6333547,178.5,178.45,6.33381059]
[1755576406092,5.43999053,178.49,178.46,0.67]
[1755576406290,30.03713852,178.48,178.47,0.67]
[1755576406495,4.03713852,178.48,178.47,0.67]
[1755576407495,3.6339011,178.49,178.47,6.2731826]
[1755576407723,29.6339011,178.49,178.48,0.67]
[1755576407919,0.03,178.5,178.48,10.77164473]
[1755576408303,0.03,178.5,178.49,0.67]
[1755576408911,0.03,178.5,178.49,16.37419949]
[1755576409305,0.03,178.5,178.49,6.27255476]
[1755576409522,0.03,178.5,178.49,16.37419949]
[1755576409723,0.03,178.5,178.49,0.67]
[1755576410025,26.0,178.47,178.45,0.06]
[1755576410230,10.10164473,178.46,178.45,0.06]
[1755576410406,26.0,178.47,178.45,0.06]
[1755576410612,10.10164473,178.46,178.45,0.06]
[1755576411324,36.10164473,178.47,178.45,0.73]
[1755576411630,26.03,178.5,178.45,0.73]
[1755576411826,26.03,178.5,178.45,0.06]
[1755576411827,26.0,178.46,178.45,0.06]
[1755576412341,26.0,178.46,178.45,0.73]
[1755576412704,0.03,178.5,178.45,0.73]
[1755576412901,0.03,178.5,178.46,10.10164473]